fUST/lending_fUST_20260602
["ID","MTS","AMOUNT","RATE_DAILY","PERIOD"]
[423761425,1780397456000,-151.0,0.00018187,2]
[423761483,1780397456000,-500.0,0.00018728,2]
[423761436,1780397456000,-673.47,0.00018452,2]
[423761458,1780397456000,-920.8,0.00018454,2]
[423761463,1780397456000,-518.65,0.00018456,2]
[423761466,1780397456000,-4419.68849182,0.00018682,2]
[423761468,1780397456000,-1418.79,0.00018726,2]
[423761469,1780397456000,-643.93,0.00018726,2]
[423761473,1780397456000,-234.5,0.00018727,2]
[423761471,1780397456000,-831.06,0.00018726,2]
[423761467,1780397456000,-617.87,0.00018726,2]
[423761472,1780397456000,-673.47,0.00018726,2]
[423761470,1780397456000,-500.0,0.00018726,2]
[423761474,1780397456000,-737.89,0.00018727,2]
[423761475,1780397456000,-541.75,0.00018727,2]
[423761476,1780397456000,-732.98,0.00018727,2]
[423761464,1780397456000,-847.23,0.00018457,2]
[423761477,1780397456000,-729.16,0.00018727,2]
[423761482,1780397456000,-2045.51,0.00018727,2]
[423761484,1780397456000,-1000.0,0.00018728,2]
[423761488,1780397456000,-1239.46,0.00018728,2]
[423761485,1780397456000,-500.0,0.00018728,2]
[423761486,1780397456000,-500.0,0.00018728,2]
[423761487,1780397456000,-500.0,0.00018728,2]
[423761489,1780397456000,-500.0,0.00018728,2]
[423761479,1780397456000,-2311.55,0.00018727,2]
[423761481,1780397456000,-9379.31,0.00018727,2]
[423761480,1780397456000,-1728.74,0.00018727,2]
[423761490,1780397456000,-2228.94,0.00018728,2]
[423761492,1780397456000,-920.8,0.00018728,2]
[423761428,1780397456000,-1053.92732455,0.00018236,2]
[423761478,1780397456000,-500.0,0.00018727,2]
[423761461,1780397456000,-500.0,0.00018456,2]
[423761491,1780397456000,-538.28,0.00018728,2]
[423761462,1780397456000,-1034.25,0.00018456,2]
[423761465,1780397456000,-996.32116828,0.00018571,2]
[423761431,1780397456000,-1418.79,0.00018452,2]
[423761442,1780397456000,-729.16,0.00018453,2]
[423761439,1780397456000,-541.75,0.00018453,2]
[423761433,1780397456000,-500.0,0.00018452,2]
[423761438,1780397456000,-737.89,0.00018453,2]
[423761432,1780397456000,-643.93,0.00018452,2]
[423761443,1780397456000,-500.0,0.00018453,2]
[423761437,1780397456000,-500.0,0.00018453,2]
[423761435,1780397456000,-512.7572115,0.00018452,2]
[423761441,1780397456000,-732.98,0.00018453,2]
[423761440,1780397456000,-500.0,0.00018453,2]
[423761445,1780397456000,-1728.74,0.00018453,2]
[423761452,1780397456000,-635.21172529,0.00018454,2]
[423761434,1780397456000,-831.06,0.00018452,2]
[423761446,1780397456000,-9379.31,0.00018453,2]
[423761459,1780397456000,-829.05,0.00018454,2]
[423761453,1780397456000,-500.0,0.00018454,2]
[423761457,1780397456000,-538.28,0.00018454,2]
[423761456,1780397456000,-2228.94,0.00018454,2]
[423761449,1780397456000,-500.0,0.00018454,2]
[423761448,1780397456000,-2045.51,0.00018453,2]
[423761460,1780397456000,-500.0,0.00018456,2]
[423761450,1780397456000,-500.0,0.00018454,2]
[423761451,1780397456000,-500.0,0.00018454,2]
[423761454,1780397456000,-1239.46,0.00018454,2]
[423761444,1780397456000,-2311.55,0.00018453,2]
[423761447,1780397456000,-619.46399044,0.00018453,2]
[423761455,1780397456000,-500.0,0.00018454,2]
[423761531,1780397457000,-1032.53662094,0.000192,2]
[423761527,1780397457000,-518.65,0.00019004,2]
[423761538,1780397457000,-737.89,0.00019275,2]
[423761539,1780397457000,-541.75,0.00019275,2]
[423761536,1780397457000,-831.06,0.00019274,2]
[423761535,1780397457000,-419.87,0.00019274,2]
[423761528,1780397457000,-847.23,0.00019005,2]
[423761520,1780397457000,-264.80308526,0.00019002,2]
[423761532,1780397457000,-617.87,0.00019274,2]
[423761523,1780397457000,-920.8,0.00019002,2]
[423761537,1780397457000,-673.47,0.00019274,2]
[423761526,1780397457000,-1034.25,0.00019004,2]
[423761541,1780397457000,-729.16,0.00019275,2]
[423761533,1780397457000,-1418.79,0.00019274,2]
[423761534,1780397457000,-643.93,0.00019274,2]
[423761540,1780397457000,-732.98,0.00019275,2]
[423761545,1780397457000,-9379.31,0.00019275,2]
[423761546,1780397457000,-2045.51,0.00019275,2]
[423761542,1780397457000,-646.36999454,0.00019275,2]
[423761551,1780397457000,-538.28,0.00019276,2]
[423761549,1780397457000,-1239.46,0.00019276,2]
[423761547,1780397457000,-500.0,0.00019276,2]
[423761543,1780397457000,-2311.55,0.00019275,2]
[423761522,1780397457000,-538.28,0.00019002,2]
[423761544,1780397457000,-1728.74,0.00019275,2]
[423761529,1780397457000,-152.0,0.00019011,7]
[423761524,1780397457000,-829.05,0.00019002,2]
[423761505,1780397457000,-500.0,0.00019,2]
[423761521,1780397457000,-2228.94,0.00019002,2]
[423761548,1780397457000,-500.0,0.00019276,2]
[423761494,1780397457000,-500.0,0.0001873,2]
[423761493,1780397457000,-829.05,0.00018728,2]
[423761495,1780397457000,-1034.25,0.0001873,2]
[423761502,1780397457000,-617.87,0.00019,2]
[423761496,1780397457000,-518.65,0.0001873,2]
[423761501,1780397457000,-190.22726229,0.00018978,2]
[423761500,1780397457000,-199.543,0.00018978,2]
[423761497,1780397457000,-847.23,0.00018731,2]
[423761498,1780397457000,-2875.10429295,0.00018973,2]
[423761499,1780397457000,-2684.9169958,0.00018973,2]
[423761504,1780397457000,-643.93,0.00019,2]
[423761514,1780397457000,-1728.74,0.00019001,2]
[423761515,1780397457000,-9379.31,0.00019001,2]
[423761503,1780397457000,-1418.79,0.00019,2]
[423761506,1780397457000,-831.06,0.00019,2]
[423761509,1780397457000,-541.75,0.00019001,2]
[423761510,1780397457000,-732.98,0.00019001,2]
[423761507,1780397457000,-673.47,0.00019,2]
[423761512,1780397457000,-500.0,0.00019001,2]
[423761511,1780397457000,-729.16,0.00019001,2]
[423761508,1780397457000,-737.89,0.00019001,2]
[423761513,1780397457000,-2311.55,0.00019001,2]
[423761517,1780397457000,-500.0,0.00019002,2]
[423761516,1780397457000,-2045.51,0.00019001,2]
[423761519,1780397457000,-1239.46,0.00019002,2]
[423761518,1780397457000,-500.0,0.00019002,2]
[423761525,1780397457000,-500.0,0.00019004,2]
[423761550,1780397457000,-2228.94,0.00019276,2]
[423761530,1780397457000,-300.0,0.00019178,2]
[423761563,1780397457000,-673.47,0.00019548,2]
[423761581,1780397457000,-847.23,0.00019553,2]
[423761583,1780397457000,-168.3888056,0.00019556,2]
[423761588,1780397457000,-1418.79,0.00019822,2]
[423761599,1780397457000,-2045.51,0.00019823,2]
[423761598,1780397457000,-9379.31,0.00019823,2]
[423761590,1780397457000,-831.06,0.00019822,2]
[423761587,1780397457000,-617.87,0.00019822,2]
[423761591,1780397457000,-673.47,0.00019822,2]
[423761592,1780397457000,-737.89,0.00019823,2]
[423761594,1780397457000,-732.98,0.00019823,2]
[423761589,1780397457000,-643.93,0.00019822,2]
[423761597,1780397457000,-1728.74,0.00019823,2]
[423761575,1780397457000,-2228.94,0.0001955,2]
[423761596,1780397457000,-2311.55,0.00019823,2]
[423761600,1780397457000,-308.48,0.00019824,2]
[423761601,1780397457000,-500.0,0.00019824,2]
[423761609,1780397457000,-847.23,0.00019827,2]
[423761606,1780397457000,-500.0,0.00019826,2]
[423761602,1780397457000,-1239.46,0.00019824,2]
[423761607,1780397457000,-1034.25,0.00019826,2]
[423761608,1780397457000,-518.65,0.00019826,2]
[423761610,1780397457000,-154849.76852679,0.0002,2]
[423761604,1780397457000,-538.28,0.00019824,2]
[423761603,1780397457000,-2228.94,0.00019824,2]
[423761605,1780397457000,-920.8,0.00019824,2]
[423761553,1780397457000,-500.0,0.00019278,2]
[423761593,1780397457000,-541.75,0.00019823,2]
[423761586,1780397457000,-150.0,0.00019821,2]
[423761595,1780397457000,-729.16,0.00019823,2]
[423761585,1780397457000,-150.0,0.00019821,2]
[423761561,1780397457000,-643.93,0.00019548,2]
[423761555,1780397457000,-518.65,0.00019278,2]
[423761552,1780397457000,-920.8,0.00019276,2]
[423761562,1780397457000,-831.06,0.00019548,2]
[423761554,1780397457000,-1034.25,0.00019278,2]
[423761580,1780397457000,-518.65,0.00019552,2]
[423761557,1780397457000,-498.0,0.00019343,2]
[423761558,1780397457000,-1162.37469633,0.00019353,2]
[423761559,1780397457000,-617.87,0.00019548,2]
[423761560,1780397457000,-1418.79,0.00019548,2]
[423761569,1780397457000,-1728.74,0.00019549,2]
[423761566,1780397457000,-732.98,0.00019549,2]
[423761568,1780397457000,-2311.55,0.00019549,2]
[423761567,1780397457000,-729.16,0.00019549,2]
[423761556,1780397457000,-847.23,0.00019279,2]
[423761564,1780397457000,-737.89,0.00019549,2]
[423761573,1780397457000,-500.0,0.0001955,2]
[423761582,1780397457000,-151.0,0.00019556,2]
[423761577,1780397457000,-920.8,0.0001955,2]
[423761578,1780397457000,-500.0,0.00019552,2]
[423761576,1780397457000,-538.28,0.0001955,2]
[423761579,1780397457000,-1034.25,0.00019552,2]
[423761584,1780397457000,-824.0,0.00019584,2]
[423761570,1780397457000,-9379.31,0.00019549,2]
[423761571,1780397457000,-2045.51,0.00019549,2]
[423761572,1780397457000,-500.0,0.0001955,2]
[423761565,1780397457000,-541.75,0.00019549,2]
[423761574,1780397457000,-1239.46,0.0001955,2]
[423761619,1780397458000,-579.3077,0.00013933,2]
[423761625,1780397458000,-500.0,0.00014069,2]
[423761627,1780397458000,-500.0,0.00014343,2]
[423761626,1780397458000,-500.0,0.00014343,2]
[423761624,1780397458000,-96.98846603,0.00014069,2]
[423761622,1780397458000,-595.99,0.00013794,2]
[423761623,1780397458000,-500.0,0.00013795,2]
[423761621,1780397458000,-403.01153397,0.00014069,2]
[423761613,1780397458000,-17833.88179295,0.0002,2]
[423761618,1780397458000,-500.0,0.00013795,2]
[423761616,1780397458000,-500.0,0.00013794,2]
[423761617,1780397458000,-500.0,0.00013795,2]
[423761615,1780397458000,206.63,8.203e-05,2]
[423761611,1780397458000,-49559.97942902,0.0002,2]
[423761614,1780397458000,-368.75,0.0002,2]
[423761612,1780397458000,-10503.6924979,0.0002,2]
[423761628,1780397458000,-337.23,0.00014343,2]
[423761620,1780397458000,-500.0,0.00014069,2]
[423761636,1780397458000,-403.44,0.00015209,2]
[423761633,1780397458000,-428.71314519,0.00014891,2]
[423761630,1780397458000,-268.95,0.00014485,2]
[423761649,1780397458000,-506.20179435,0.00017769,2]
[423761647,1780397458000,-750.95708548,0.0002,2]
[423761642,1780397458000,-829.05,0.0001955,2]
[423761640,1780397458000,-579.3077,0.00016673,2]
[423761643,1780397458000,-829.05,0.00019824,2]
[423761644,1780397458000,-6640.46021507,0.0002,2]
[423761645,1780397458000,-3745.2009488,0.0002,2]
[423761646,1780397458000,-579.3077,0.00017221,2]
[423761648,1780397458000,-1199.77605772,0.0002,2]
[423761638,1780397458000,-579.3077,0.00016125,2]
[423761641,1780397458000,-829.05,0.00019276,2]
[423761635,1780397458000,-579.3077,0.00015029,2]
[423761631,1780397458000,-500.0,0.00014617,2]
[423761629,1780397458000,-579.3077,0.00014481,2]
[423761632,1780397458000,-500.0,0.00014617,2]
[423761637,1780397458000,-579.3077,0.00015577,2]
[423761634,1780397458000,-332.7018924,0.00014891,2]
[423761639,1780397458000,-152.0,0.00016457,2]
[423761655,1780397722000,172.0,0.00019285,120]
[423761656,1780397724000,172.0,0.00020249,120]
[423761657,1780397726000,172.0,0.00021262,120]
[423761658,1780397728000,172.0,0.00022325,120]
[423761659,1780397729000,178.0,0.00018363,120]
[423761660,1780397730000,178.0,0.00019281,120]
[423761664,1780398010000,173.0,0.00020307,120]
[423761665,1780398011000,173.0,0.00021323,120]
[423761666,1780398013000,173.0,0.00022389,120]
[423761670,1780398111000,-5000.0,0.00012226,2]
[423761671,1780398128000,-2773.8564183,0.0001235,2]
[423761672,1780398145000,-2226.1435817,0.0001235,2]
[423761674,1780398162000,-5000.0,0.00012475,2]
[423761675,1780398178000,-2773.8564183,0.00012794,2]
[423761678,1780398292000,4553.0,0.0002,120]
[423761679,1780398308000,173.0,0.00020314,120]
[423761680,1780398309000,173.0,0.0002133,120]
[423761740,1780398631000,-433.45811007,0.00012665,2]
[423761757,1780398632000,-2445.30999465,0.00012793,2]
[423761748,1780398632000,-4566.54188993,0.00012665,2]
[423761758,1780398632000,-297.67298545,0.00012793,2]
[423761750,1780398632000,-255.15416829,0.00012793,2]
[423761833,1780398638000,-500.0,0.00013792,2]
[423761831,1780398638000,-353.87605232,0.00013791,2]
[423761830,1780398638000,-569.45,0.00013791,2]
[423761829,1780398638000,-759.36,0.00013791,2]
[423761826,1780398638000,-501.38,0.00013791,2]
[423761817,1780398638000,-500.0,0.00013698,2]
[423761827,1780398638000,-500.0,0.00013791,2]
[423761825,1780398638000,-2205.33050681,0.00013717,2]
[423761818,1780398638000,-500.0,0.00013698,2]
[423761823,1780398638000,-500.0,0.00013698,2]
[423761822,1780398638000,-500.0,0.00013698,2]
[423761819,1780398638000,-500.0,0.00013698,2]
[423761820,1780398638000,-810.94,0.00013698,2]
[423761828,1780398638000,-500.0,0.00013791,2]
[423761813,1780398638000,-500.0,0.00013698,2]
[423761815,1780398638000,-535.91,0.00013698,2]
[423761824,1780398638000,-1000.0,0.00013699,2]
[423761812,1780398638000,-500.0,0.00013698,2]
[423761836,1780398638000,-500.0,0.00013792,2]
[423761808,1780398638000,-500.0,0.00013698,2]
[423761805,1780398638000,-613.00144633,0.00012793,2]
[423761806,1780398638000,-500.0,0.00012793,2]
[423761807,1780398638000,-12226.1435817,0.00012794,2]
[423761804,1780398638000,-500.0,0.00012793,2]
[423761802,1780398638000,-1193.25754588,0.00012793,2]
[423761803,1780398638000,-1987.57489048,0.00012793,2]
[423761800,1780398638000,-983.59412008,0.00012793,2]
[423761801,1780398638000,-1658.44732523,0.00012793,2]
[423761794,1780398638000,-1178.98896994,0.00012793,2]
[423761821,1780398638000,-1062.49,0.00013698,2]
[423761832,1780398638000,-220.44475696,0.00013791,2]
[423761810,1780398638000,-500.0,0.00013698,2]
[423761834,1780398638000,-500.0,0.00013792,2]
[423761835,1780398638000,-500.0,0.00013792,2]
[423761864,1780398638000,-500.0,0.00013792,2]
[423761865,1780398638000,-501.60488927,0.00013792,2]
[423761860,1780398638000,-500.0,0.00013792,2]
[423761863,1780398638000,-500.0,0.00013792,2]
[423761862,1780398638000,-500.0,0.00013792,2]
[423761861,1780398638000,-500.0,0.00013792,2]
[423761859,1780398638000,-500.0,0.00013792,2]
[423761858,1780398638000,-500.0,0.00013792,2]
[423761856,1780398638000,-500.0,0.00013792,2]
[423761857,1780398638000,-500.0,0.00013792,2]
[423761854,1780398638000,-500.0,0.00013792,2]
[423761855,1780398638000,-378.64174668,0.00013792,2]
[423761852,1780398638000,-500.0,0.00013792,2]
[423761853,1780398638000,-500.0,0.00013792,2]
[423761866,1780398638000,-500.0,0.00013792,2]
[423761851,1780398638000,-500.0,0.00013792,2]
[423761837,1780398638000,-500.0,0.00013792,2]
[423761838,1780398638000,-500.0,0.00013792,2]
[423761841,1780398638000,-500.0,0.00013792,2]
[423761840,1780398638000,-500.0,0.00013792,2]
[423761848,1780398638000,-500.0,0.00013792,2]
[423761842,1780398638000,-500.0,0.00013792,2]
[423761839,1780398638000,-500.0,0.00013792,2]
[423761844,1780398638000,-544.67925472,0.00013792,2]
[423761850,1780398638000,-500.0,0.00013792,2]
[423761846,1780398638000,-500.0,0.00013792,2]
[423761845,1780398638000,-177.26225668,0.00013792,2]
[423761847,1780398638000,-500.0,0.00013792,2]
[423761849,1780398638000,-500.0,0.00013792,2]
[423761843,1780398638000,-821.69,0.00013792,2]
[423761909,1780398639000,-500.0,0.00013792,2]
[423761911,1780398639000,-500.0,0.00013792,2]
[423761907,1780398639000,-500.0,0.00013792,2]
[423761906,1780398639000,-500.0,0.00013792,2]
[423761905,1780398639000,-392.84023807,0.00013792,2]
[423761894,1780398639000,-500.0,0.00013792,2]
[423761903,1780398639000,-500.0,0.00013792,2]
[423761902,1780398639000,-500.0,0.00013792,2]
[423761896,1780398639000,-500.0,0.00013792,2]
[423761897,1780398639000,-500.0,0.00013792,2]
[423761908,1780398639000,-500.0,0.00013792,2]
[423761904,1780398639000,-180.55341535,0.00013792,2]
[423761910,1780398639000,-500.0,0.00013792,2]
[423761920,1780398639000,-500.0,0.00013792,2]
[423761915,1780398639000,-701.31,0.00013792,2]
[423761914,1780398639000,-500.0,0.00013792,2]
[423761916,1780398639000,-500.0,0.00013792,2]
[423761923,1780398639000,-500.0,0.00013792,2]
[423761918,1780398639000,-500.0,0.00013792,2]
[423761917,1780398639000,-500.0,0.00013792,2]
[423761922,1780398639000,-500.0,0.00013792,2]
[423761919,1780398639000,-500.0,0.00013792,2]
[423761921,1780398639000,-500.0,0.00013792,2]
[423761925,1780398639000,-500.0,0.00013792,2]
[423761924,1780398639000,-500.0,0.00013792,2]
[423761927,1780398639000,-500.0,0.00013792,2]
[423761898,1780398639000,-500.0,0.00013792,2]
[423761912,1780398639000,-501.81188514,0.00013792,2]
[423761899,1780398639000,-500.0,0.00013792,2]
[423761881,1780398639000,-500.0,0.00013792,2]
[423761901,1780398639000,-500.0,0.00013792,2]
[423761868,1780398639000,-500.0,0.00013792,2]
[423761867,1780398639000,-500.0,0.00013792,2]
[423761870,1780398639000,-500.0,0.00013792,2]
[423761869,1780398639000,-500.0,0.00013792,2]
[423761871,1780398639000,-500.0,0.00013792,2]
[423761872,1780398639000,-1044.6825784,0.00013792,2]
[423761875,1780398639000,-500.0,0.00013792,2]
[423761877,1780398639000,-500.71219344,0.00013792,2]
[423761876,1780398639000,-500.0,0.00013792,2]
[423761873,1780398639000,-500.0,0.00013792,2]
[423761874,1780398639000,-500.0,0.00013792,2]
[423761878,1780398639000,-500.91254864,0.00013792,2]
[423761879,1780398639000,-500.0,0.00013792,2]
[423761900,1780398639000,-690.91,0.00013792,2]
[423761880,1780398639000,-500.0,0.00013792,2]
[423761887,1780398639000,-500.0,0.00013792,2]
[423761884,1780398639000,-500.0,0.00013792,2]
[423761883,1780398639000,-500.0,0.00013792,2]
[423761886,1780398639000,-483.85428335,0.00013792,2]
[423761882,1780398639000,-500.0,0.00013792,2]
[423761885,1780398639000,-500.0,0.00013792,2]
[423761888,1780398639000,-500.67470015,0.00013792,2]
[423761889,1780398639000,-500.0,0.00013792,2]
[423761890,1780398639000,-500.0,0.00013792,2]
[423761891,1780398639000,-500.0,0.00013792,2]
[423761892,1780398639000,-500.0,0.00013792,2]
[423761893,1780398639000,-500.0,0.00013792,2]
[423761895,1780398639000,-500.0,0.00013792,2]
[423761928,1780398639000,-500.0,0.00013792,2]
[423761926,1780398639000,-500.0,0.00013792,2]
[423761913,1780398639000,-500.0,0.00013792,2]
[423761931,1780398639000,-500.0,0.00013792,2]
[423761962,1780398639000,-500.0,0.00013795,2]
[423761965,1780398639000,-500.0,0.00013795,2]
[423761964,1780398639000,-500.0,0.00013795,2]
[423761966,1780398639000,-500.0,0.00013795,2]
[423761968,1780398639000,-500.0,0.00013972,2]
[423761967,1780398639000,-500.0,0.00013796,2]
[423761969,1780398639000,-500.0,0.00013972,2]
[423761971,1780398639000,-500.0,0.00013972,2]
[423761972,1780398639000,-535.91,0.00013972,2]
[423761973,1780398639000,-500.0,0.00013972,2]
[423761970,1780398639000,-500.0,0.00013972,2]
[423761977,1780398639000,-1062.49,0.00013972,2]
[423761974,1780398639000,-500.0,0.00013972,2]
[423761961,1780398639000,-500.0,0.00013795,2]
[423761975,1780398639000,-500.0,0.00013972,2]
[423761978,1780398639000,-500.0,0.00013972,2]
[423761980,1780398639000,-151.0,0.00014,2]
[423761979,1780398639000,-500.0,0.00013972,2]
[423761990,1780398639000,-500.0,0.00014066,2]
[423761981,1780398639000,-500.0,0.00014,2]
[423761983,1780398639000,-500.0,0.00014065,2]
[423761982,1780398639000,-501.38,0.00014065,2]
[423761985,1780398639000,-500.0,0.00014065,2]
[423761986,1780398639000,-759.36,0.00014065,2]
[423761988,1780398639000,-500.0,0.00014066,2]
[423761987,1780398639000,-569.45,0.00014065,2]
[423761989,1780398639000,-500.0,0.00014066,2]
[423761929,1780398639000,-500.0,0.00013792,2]
[423761976,1780398639000,-810.94,0.00013972,2]
[423761959,1780398639000,-221.79537452,0.00013795,2]
[423761991,1780398639000,-500.0,0.00014066,2]
[423761957,1780398639000,-500.0,0.00013795,2]
[423761960,1780398639000,-165.55598906,0.00013795,2]
[423761930,1780398639000,-500.0,0.00013792,2]
[423761934,1780398639000,-500.0,0.00013792,2]
[423761932,1780398639000,-500.0,0.00013792,2]
[423761937,1780398639000,-500.0,0.00013792,2]
[423761938,1780398639000,-500.0,0.00013792,2]
[423761935,1780398639000,-500.0,0.00013792,2]
[423761936,1780398639000,-500.0,0.00013792,2]
[423761939,1780398639000,-500.0,0.00013792,2]
[423761940,1780398639000,-500.0,0.00013792,2]
[423761941,1780398639000,-1774.6875,0.00013793,2]
[423761942,1780398639000,-1273.15,0.00013794,2]
[423761943,1780398639000,-500.0,0.00013794,2]
[423761948,1780398639000,-500.0,0.00013795,2]
[423761933,1780398639000,-500.0,0.00013792,2]
[423761954,1780398639000,-500.0,0.00013795,2]
[423761945,1780398639000,-500.0,0.00013794,2]
[423761944,1780398639000,-500.0,0.00013794,2]
[423761947,1780398639000,-500.0,0.00013794,2]
[423761950,1780398639000,-500.0,0.00013795,2]
[423761949,1780398639000,-500.0,0.00013795,2]
[423761952,1780398639000,-500.0,0.00013795,2]
[423761951,1780398639000,-500.0,0.00013795,2]
[423761953,1780398639000,-500.0,0.00013795,2]
[423761946,1780398639000,-500.0,0.00013794,2]
[423761955,1780398639000,-356.63638619,0.00013795,2]
[423761956,1780398639000,-500.0,0.00013795,2]
[423761958,1780398639000,-500.0,0.00013795,2]
[423761963,1780398639000,-500.0,0.00013795,2]
[423762065,1780398640000,-500.0,0.00014066,2]
[423762096,1780398640000,-500.0,0.00014066,2]
[423762069,1780398640000,-245.12659779,0.00014066,2]
[423762071,1780398640000,-701.31,0.00014066,2]
[423762067,1780398640000,-500.0,0.00014066,2]
[423762051,1780398640000,-500.0,0.00014066,2]
[423762061,1780398640000,-500.0,0.00014066,2]
[423762059,1780398640000,-500.0,0.00014066,2]
[423762057,1780398640000,-273.74137482,0.00014066,2]
[423762049,1780398640000,-500.0,0.00014066,2]
[423762053,1780398640000,-500.0,0.00014066,2]
[423762063,1780398640000,-500.0,0.00014066,2]
[423762073,1780398640000,-500.0,0.00014066,2]
[423762087,1780398640000,-500.0,0.00014066,2]
[423762077,1780398640000,-538.42,0.00014066,2]
[423762085,1780398640000,-500.0,0.00014066,2]
[423762081,1780398640000,-500.0,0.00014066,2]
[423762079,1780398640000,-500.0,0.00014066,2]
[423762083,1780398640000,-500.0,0.00014066,2]
[423762088,1780398640000,-500.0,0.00014066,2]
[423762102,1780398640000,-157.90755984,0.00014066,2]
[423762092,1780398640000,-500.0,0.00014066,2]
[423762090,1780398640000,-530.15,0.00014066,2]
[423762105,1780398640000,-500.0,0.00014066,2]
[423762103,1780398640000,-500.0,0.00014066,2]
[423762098,1780398640000,-329.17,0.00014066,2]
[423762055,1780398640000,-690.91,0.00014066,2]
[423762075,1780398640000,-413.19926284,0.00014066,2]
[423762048,1780398640000,-500.0,0.00014066,2]
[423762016,1780398640000,-250.17859059,0.00014066,2]
[423762045,1780398640000,-404.562334,0.00014066,2]
[423762094,1780398640000,-500.0,0.00014066,2]
[423761992,1780398640000,-500.0,0.00014066,2]
[423761993,1780398640000,-500.0,0.00014066,2]
[423761994,1780398640000,-628.21667168,0.00014066,2]
[423761996,1780398640000,-500.0,0.00014066,2]
[423761999,1780398640000,-500.0,0.00014066,2]
[423761997,1780398640000,-821.69,0.00014066,2]
[423762000,1780398640000,-500.0,0.00014066,2]
[423762005,1780398640000,-500.0,0.00014066,2]
[423761995,1780398640000,-500.0,0.00014066,2]
[423762007,1780398640000,-500.0,0.00014066,2]
[423762003,1780398640000,-500.0,0.00014066,2]
[423762011,1780398640000,-500.0,0.00014066,2]
[423762044,1780398640000,-500.0,0.00014066,2]
[423762029,1780398640000,-500.0,0.00014066,2]
[423762019,1780398640000,-500.0,0.00014066,2]
[423762023,1780398640000,-161.53149075,0.00014066,2]
[423762014,1780398640000,-500.0,0.00014066,2]
[423762025,1780398640000,-326.23925281,0.00014066,2]
[423762030,1780398640000,-500.0,0.00014066,2]
[423762027,1780398640000,-500.0,0.00014066,2]
[423762021,1780398640000,-508.1672781,0.00014066,2]
[423762032,1780398640000,-500.0,0.00014066,2]
[423762034,1780398640000,-628.24,0.00014066,2]
[423762036,1780398640000,-500.0,0.00014066,2]
[423762042,1780398640000,-180.50356884,0.00014066,2]
[423762040,1780398640000,-500.0,0.00014066,2]
[423762038,1780398640000,-500.0,0.00014066,2]
[423762013,1780398640000,-500.0,0.00014066,2]
[423762100,1780398640000,-500.0,0.00014066,2]
[423762180,1780398640000,-1062.49,0.00014246,2]
[423762119,1780398640000,-500.0,0.00014068,2]
[423762174,1780398640000,-628.47,0.00014246,2]
[423762168,1780398640000,-583.95404397,0.00014069,2]
[423762171,1780398640000,-500.0,0.0001407,2]
[423762176,1780398640000,-500.0,0.00014246,2]
[423762175,1780398640000,-535.91,0.00014246,2]
[423762186,1780398640000,-500.0,0.00014339,2]